fUSD/lending_fUSD_20250417
["ID","MTS","AMOUNT","RATE_DAILY","PERIOD"]
[358317569,1744930246643,-2110.0,0.0008,30]
[358317570,1744930246652,-195.049999,0.0008,120]
[358317571,1744930246661,-199.45,0.0008,60]
[358317572,1744930246670,-477.87,0.0008,120]
[358317573,1744930246680,-242.26999817,0.0008,30]
[358317574,1744930246689,-323.0,0.0008,120]
[358317575,1744930246698,-2150.14,0.0008,60]
[358317576,1744930246707,-100762.2428643,0.0008,120]
[358317577,1744930246719,-77534.53384559,0.0008,120]
[358317578,1744930246730,-7000.0,0.0008,120]
[358317579,1744930246741,-2290.7,0.0008,120]
[358317580,1744930246752,-354.79,0.0008,120]
[358317581,1744930246763,-17904.16860366,0.0008,120]
[358317582,1744930246774,-493.80144382,0.0008,120]
[358317583,1744930246820,-890.57598,0.0008,120]
[358317584,1744930246832,-1006.68,0.0008,120]
[358317585,1744930246843,-930.36,0.0008,120]
[358317586,1744930246854,-1073.5,0.0008,120]
[358317587,1744930246865,-546.38440035,0.0008,120]
[358317588,1744930246876,-972.78559965,0.0008,120]
[358317590,1744930246887,-788239.47726263,0.0008,120]
[358317592,1744930246897,-3261.95686747,0.0008,120]
[358317593,1744930246907,-151.0,0.0008,120]
[358317594,1744930246916,-151.0,0.0008,120]
[358317595,1744930246925,-151.0,0.0008,120]
[358317596,1744930246934,-151.0,0.0008,120]
[358317597,1744930246944,-151.0,0.0008,120]
[358317598,1744930246954,-151.0,0.0008,120]
[358317599,1744930246963,-151.0,0.0008,120]
[358317600,1744930246973,-151.0,0.0008,120]
[358317602,1744930246983,-151.0,0.0008,120]
[358317604,1744930246992,-151.0,0.0008,120]
[358317606,1744930247001,-25930.0,0.0008,120]
[358317608,1744930247011,-151.0,0.0008,120]
[358317610,1744930247020,-151.0,0.0008,30]
[358317612,1744930247030,-151.0,0.0008,120]
[358317614,1744930247039,-151.0,0.0008,90]
[358317615,1744930247048,-151.0,0.0008,120]
[358317616,1744930247058,-151.0,0.0008,120]
[358317617,1744930247067,-151.0,0.0008,120]
[358317618,1744930247076,-151.0,0.0008,120]
[358317619,1744930247086,-151.0,0.0008,120]
[358317620,1744930247095,-1539.0,0.0008,14]
[358317621,1744930247104,-233.826331,0.0008,120]
[358317622,1744930247113,-151.0,0.0008,60]
[358317623,1744930247123,-151.201498,0.0008,60]
[358317624,1744930247132,-151.0,0.0008,120]
[358317625,1744930247141,-151.0,0.0008,120]
[358317626,1744930247151,-151.0,0.0008,120]
[358317627,1744930247160,-151.0,0.0008,120]
[358317628,1744930247169,-151.0,0.0008,120]
[358317629,1744930247179,-151.0,0.0008,120]
[358317630,1744930247189,-151.0,0.0008,120]
[358317631,1744930247198,-151.0,0.0008,120]
[358317632,1744930247208,-151.0,0.0008,120]
[358317633,1744930247218,-280.114236,0.0008,120]
[358317634,1744930247228,-151.0,0.0008,120]
[358317635,1744930247238,-151.0,0.0008,120]
[358317636,1744930247247,-151.0,0.0008,120]
[358317637,1744930247257,-151.0,0.0008,120]
[358317638,1744930247266,-151.0,0.0008,120]
[358317639,1744930247276,-151.0,0.0008,120]
[358317640,1744930247285,-200.0,0.0008,120]
[358317641,1744930247294,-214.8,0.0008,120]
[358317642,1744930247305,-162.380719,0.0008,120]
[358317643,1744930247314,-151.0,0.0008,120]
[358317644,1744930247323,-151.0,0.0008,120]
[358317645,1744930247332,-151.0,0.0008,120]
[358317646,1744930247341,-151.0,0.0008,120]
[358317647,1744930247350,-151.0,0.0008,120]
[358317648,1744930247360,-151.0,0.0008,120]
[358317649,1744930247370,-151.0,0.0008,120]
[358317650,1744930247379,-151.0,0.0008,120]
[358317651,1744930247389,-161.724065,0.0008,120]
[358317652,1744930247402,-151.0,0.0008,120]
[358317653,1744930247411,-151.0,0.0008,120]
[358317654,1744930247420,-151.0,0.0008,120]
[358317655,1744930247430,-151.0,0.0008,120]
[358317656,1744930247440,-151.0,0.0008,120]
[358317657,1744930247449,-151.0,0.0008,120]
[358317658,1744930247460,-151.0,0.0008,120]
[358317659,1744930247472,-151.0,0.0008,120]
[358317660,1744930247482,-151.0,0.0008,120]
[358317661,1744930247494,-184.599356,0.0008,120]
[358317662,1744930247504,-217.762955,0.0008,120]
[358317663,1744930247514,-151.0,0.0008,120]
[358317664,1744930247523,-151.0,0.0008,120]
[358317665,1744930247533,-242.601858,0.0008,120]
[358317666,1744930247544,-151.0,0.0008,120]
[358317667,1744930247553,-151.0,0.0008,120]
[358317668,1744930247563,-151.0,0.0008,120]
[358317669,1744930247572,-151.0,0.0008,120]
[358317670,1744930247581,-151.0,0.0008,120]
[358317671,1744930247591,-151.0,0.0008,120]
[358317672,1744930247600,-151.0,0.0008,120]
[358317673,1744930247610,-151.0,0.0008,120]
[358317674,1744930247619,-151.0,0.0008,120]
[358317675,1744930247628,-151.0,0.0008,120]
[358317676,1744930247638,-151.0,0.0008,120]
[358317677,1744930247647,-165.10370631,0.00080023,28]
[358317678,1744930247656,-168.52,0.00080043,2]
[358317679,1744930247666,-2000.0,0.00080553,14]
[358317680,1744930247675,-353.66703927,0.00080733,120]
[358317681,1744930247684,-150.0,0.000809,120]
[358317682,1744930247693,-356.36374292,0.000809,2]
[358317683,1744930247703,-624.47,0.00080999,120]
[358317684,1744930247713,-624.47,0.00080999,120]
[358317685,1744930247722,-624.47,0.00080999,120]
[358317686,1744930247732,-624.47,0.00080999,120]
[358317687,1744930247742,-624.47,0.00080999,120]
[358317688,1744930247751,-500.0,0.00080999,120]
[358317689,1744930247761,-500.0,0.00080999,120]
[358317690,1744930247771,-500.0,0.00080999,120]
[358317691,1744930247780,-361.74,0.00080999,120]
[358317692,1744930247789,-880.85,0.00080999,120]
[358317693,1744930247799,-880.85,0.00080999,120]
[358317694,1744930247808,-880.85,0.00080999,120]
[358317695,1744930247817,-880.85,0.00080999,120]
[358317696,1744930247826,-880.85,0.00080999,120]
[358317697,1744930247835,-1379.15,0.00080999,120]
[358317698,1744930247845,-1379.15,0.00080999,120]
[358317699,1744930247854,-1379.15,0.00080999,120]
[358317700,1744930247864,-1379.15,0.00080999,120]
[358317701,1744930247873,-1379.15,0.00080999,120]
[358317702,1744930247883,-336.58619298,0.00080999,90]
[358317703,1744930247892,-50000.0,0.00081,81]
[358317704,1744930247901,-92045.17813311,0.00081,120]
[358317705,1744930247915,-4300.9817563,0.00081,120]
[358317706,1744930248186,-1050.0,0.00081,120]
[358317707,1744930248198,-4192.25,0.00081,120]
[358317708,1744930248347,-100.16861487,0.00081,120]
[358317709,1744930248358,-4071.46576798,0.00081,120]
[358317710,1744930248371,-3006.74432933,0.00081,120]
[358317711,1744930248383,-3191.79999998,0.00081,120]
[358317715,1744930487192,250.0,0.00017,2]
[358317716,1744930488347,300.0,0.00019,2]
[358317725,1744931137128,-160.0,0.00038151,30]
[358317726,1744931137156,-153.54,0.000552,54]
[358317727,1744931137177,-81.72701572,0.00055255,111]
[358317730,1744931229106,-250.0,0.00048513,2]
[358317731,1744931229128,-179.50943059,0.00054979,10]
[358317732,1744931229155,-153.53,0.000552,54]
[358317733,1744931229181,-268.27298428,0.00055255,111]
[358317734,1744931229202,-171.0,0.00058,120]
[358317735,1744931229223,-260.36,0.0006,120]
[358317736,1744931229245,-500.0,0.00060086,120]
[358317737,1744931229265,-498.61026325,0.00062636,2]
[358317738,1744931229286,-222.02593801,0.00062736,2]
[358317739,1744931229306,-498.61026324,0.00062736,2]
[358317740,1744931229328,-500.0,0.00062836,120]
[358317741,1744931229347,-500.0,0.0006591,120]
[358317742,1744931229368,-171.0,0.00068,120]
[358317743,1744931229388,-500.0,0.00068493,120]
[358317744,1744931229407,-2389.88614109,0.00068515,11]
[358317745,1744931229516,-222.025938,0.0006904,2]
[358317746,1744931229565,-227.6769,0.00069159,2]
[358317747,1744931229586,-1266.799997,0.00069259,30]
[358317748,1744931229606,-999.99,0.00069608,20]
[358317749,1744931229625,-150.99,0.00069608,31]
[358317750,1744931229645,-150.99,0.00072501,2]
[358317751,1744931229666,-1106.45998698,0.00072865,30]
[358317752,1744931234095,-93.54001302,0.00072865,30]
[358317753,1744931234116,-499.99,0.00072866,30]
[358317754,1744931234136,-469.75026121,0.00072866,2]
[358317755,1744931237085,-218.1399547,0.00061691,120]
[358317756,1744931246090,-281.8600453,0.00061691,120]
[358317757,1744931246111,-151.0,0.00066039,30]
[358317758,1744931246132,-256.18627123,0.00071223,120]
[358317759,1744931247168,-46.08372877,0.00071223,120]
[358317760,1744931247189,-849.30625313,0.00072866,2]
[358317768,1744931346450,-299.57569753,0.00065755,120]
[358317769,1744931371086,-200.42430247,0.00065755,120]
[358317770,1744931371107,-37.96076001,0.00065772,111]
[358317772,1744931431608,-312.03923999,0.00065772,111]
[358317773,1744931431616,-500.0,0.00065788,120]
[358317774,1744931431623,-448.44658,0.0006992,30]
[358317775,1744931431630,-350.0,0.00070271,111]
[358317776,1744931431637,-350.0,0.00072331,111]
[358317777,1744931431646,-1440.0,0.0007286,120]
[358317778,1744931431656,-300.0,0.00072865,120]
[358317779,1744931431666,-769.09348566,0.00072866,2]
[358317780,1744931431675,-9999.99,0.00072866,2]
[358317781,1744931431687,-2389.8861411,0.00072866,12]
[358317782,1744931431696,-682.83,0.00073731,2]
[358317783,1744931431705,-999.99,0.00073731,20]
[358317784,1744931431715,-150.99,0.00073731,31]
[358317785,1744931431724,-165.93,0.00074082,120]
[358317786,1744931431734,-1000.0,0.0007481,16]
[358317787,1744931431743,-23900.0,0.00074811,2]
[358317788,1744931431753,-1162.46,0.00074832,30]
[358317789,1744931431763,-8600.48413041,0.0007489,2]
[358317790,1744931431773,-550.0,0.000749,20]
[358317791,1744931431782,-1754.62,0.00074901,120]
[358317792,1744931431792,-250.0,0.00074901,120]
[358317793,1744931431801,-1000.0,0.00075,120]
[358317794,1744931431810,-1000.0,0.00075,120]
[358317795,1744931431819,-504.35525356,0.00075236,15]
[358317796,1744931431828,-809.8239352,0.00075237,120]
[358317797,1744931431838,-1042.474,0.00075343,120]
[358317799,1744931431847,-222.025938,0.00075343,2]
[358317801,1744931431856,-189.073,0.00075343,120]
[358317802,1744931431866,-500.0,0.00075443,120]
[358317804,1744931431875,-500.0,0.00075443,120]
[358317805,1744931431887,-500.0,0.00075443,120]
[358317806,1744931431896,-500.0,0.00075443,120]
[358317807,1744931431905,-500.0,0.00075443,120]
[358317808,1744931431915,-500.0,0.00075443,120]
[358317809,1744931431925,-500.0,0.00075443,120]
[358317810,1744931431935,-500.0,0.00075443,120]
[358317811,1744931431944,-508.92639672,0.00075443,120]
[358317812,1744931431954,-500.0,0.00075443,120]
[358317813,1744931431963,-500.0,0.00075443,120]
[358317814,1744931431974,-500.0,0.00075443,120]
[358317815,1744931431983,-500.0,0.00075443,120]
[358317816,1744931431992,-528.47024692,0.00075443,120]
[358317817,1744931432001,-500.0,0.00075443,120]
[358317818,1744931432010,-500.0,0.00075443,120]
[358317819,1744931432019,-500.0,0.00075443,120]
[358317820,1744931432028,-500.0,0.00075443,120]
[358317821,1744931432037,-500.0,0.00075443,120]
[358317822,1744931432047,-500.0,0.00075443,120]
[358317823,1744931432056,-500.0,0.00075443,120]
[358317824,1744931432066,-543.66185593,0.00075443,120]
[358317825,1744931432075,-500.0,0.00075443,120]
[358317826,1744931432085,-500.0,0.00075443,120]
[358317827,1744931432095,-500.0,0.00075443,120]
[358317828,1744931432105,-500.0,0.00075443,120]
[358317829,1744931432116,-500.0,0.00075443,120]
[358317830,1744931432126,-500.0,0.00075443,120]
[358317831,1744931432136,-500.0,0.00075443,120]
[358317832,1744931432146,-416.6,0.00075443,120]
[358317833,1744931432155,-500.0,0.00075443,120]
[358317834,1744931432164,-500.0,0.00075443,120]
[358317835,1744931432174,-500.0,0.00075443,120]
[358317836,1744931432183,-500.0,0.00075443,120]
[358317837,1744931432193,-1768.0,0.00075563,2]
[358317838,1744931432203,-1000.0,0.000756,120]
[358317839,1744931432216,-551.81,0.0007566,2]
[358317840,1744931432227,-316.01,0.0007574,2]
[358317841,1744931432236,-160.69701794,0.00075821,15]
[358317842,1744931432247,-500.0,0.00075931,15]
[358317843,1744931432256,-682.83,0.00075995,2]
[358317844,1744931432265,-1000.0,0.00076,120]
[358317845,1744931432275,-1000.0,0.00076,120]
[358317846,1744931432285,-562.75408289,0.00076051,2]
[358317847,1744931432298,-410.38301711,0.00076051,2]
[358317848,1744931432308,-145.78698289,0.00076051,2]
[358317849,1744931432319,-445.2000003,0.00076051,2]
[358317850,1744931432331,-277.8417361,0.00076051,2]
[358317851,1744931432343,-305.304984,0.00076051,2]
[358317852,1744931437538,-419.27886625,0.00075572,2]
[358317853,1744931437935,-5152.75113375,0.00075572,2]
[358317854,1744931437945,-2738.30049671,0.00076051,2]
[358317855,1744931437955,-500.0,0.00076054,120]
[358317856,1744931437965,-500.0,0.00076151,120]
[358317857,1744931437974,-534.46798961,0.00076151,120]
[358317858,1744931437984,-500.0,0.00076151,120]
[358317859,1744931437993,-500.0,0.00076151,120]
[358317860,1744931438002,-500.0,0.00076151,120]
[358317861,1744931438010,-500.0,0.00076151,120]
[358317862,1744931438019,-500.0,0.00076151,120]
[358317863,1744931438028,-500.0,0.00076151,120]
[358317864,1744931438037,-500.0,0.00076151,120]
[358317865,1744931438046,-500.0,0.00076151,120]
[358317866,1744931438056,-506.36507263,0.00076151,120]
[358317868,1744931438066,-520.28825663,0.00076151,120]
[358317870,1744931438076,-525.58052178,0.00076151,120]
[358317872,1744931438088,-500.0,0.00076151,120]
[358317874,1744931438098,-500.0,0.00076151,120]
[358317876,1744931438107,-500.0,0.00076151,120]
[358317878,1744931438117,-500.0,0.00076151,120]
[358317881,1744931438127,-526.27776603,0.00076151,120]
[358317882,1744931438136,-500.0,0.00076151,120]
[358317885,1744931438146,-500.0,0.00076151,120]
[358317887,1744931438155,-560.61589651,0.00076151,120]
[358317889,1744931438165,-516.79802631,0.00076151,120]
[358317890,1744931438175,-500.0,0.00076151,120]
[358317892,1744931438185,-500.0,0.00076151,120]
[358317894,1744931438194,-500.0,0.00076151,120]
[358317896,1744931438203,-500.0,0.00076151,120]
[358317898,1744931438213,-509.08127751,0.00076151,120]
[358317901,1744931438222,-527.44519239,0.00076151,120]
[358317902,1744931438232,-500.0,0.00076151,120]
[358317904,1744931438243,-500.0,0.00076151,120]
[358317907,1744931438255,-534.95035453,0.00076151,120]
[358317909,1744931438265,-500.0,0.00076151,120]
[358317911,1744931438274,-500.0,0.00076151,14]
[358317914,1744931438284,-500.0,0.00076151,120]
[358317917,1744931438293,-500.0,0.00076151,14]
[358317920,1744931438302,-514.71555956,0.00076151,120]
[358317923,1744931438311,-500.0,0.00076151,120]
[358317926,1744931438321,-199.92004018,0.00076151,120]
[358317928,1744931438330,-500.0,0.00076151,120]
[358317930,1744931438339,-497.80598248,0.00076151,120]
[358317932,1744931438350,-500.0,0.00076151,120]
[358317934,1744931438359,-500.0,0.00076151,120]
[358317936,1744931438369,-500.0,0.00076151,120]
[358317938,1744931438378,-200.0,0.00076197,30]
[358317940,1744931438387,-203.69,0.00076202,2]
[358317942,1744931438396,-233.34,0.00076295,120]
[358317944,1744931438406,-184.27,0.0007635,120]
[358317946,1744931438415,-500.0,0.00076448,30]
[358317948,1744931438424,-150.0,0.00076668,30]
[358317950,1744931438433,-989.4,0.00076691,2]
[358317952,1744931438443,-223.58,0.0007679,2]
[358317954,1744931438452,-1000.0,0.00077,120]
[358317956,1744931438462,-1000.0,0.00077423,120]
[358317957,1744931438471,-1000.0,0.000775,120]
[358317958,1744931438480,-1000.0,0.000776,120]
[358317959,1744931438490,-167.63,0.0007784,2]
[358317960,1744931438499,-669.80857617,0.00077854,17]
[358317961,1744931438508,-1000.0,0.00078,120]
[358317962,1744931438517,-1000.0,0.00078,120]
[358317963,1744931438527,-1000.0,0.00078,120]
[358317964,1744931438536,-682.83,0.00078259,2]
[358317965,1744931438545,-1000.0,0.00079,120]
[358317966,1744931438555,-372.63547875,0.00079452,120]
[358317967,1744931438565,-500.0,0.00079452,120]
[358317969,1744931438574,-1923.459601,0.000797,120]
[358317970,1744931438584,-168.32,0.00079711,2]
[358317971,1744931438593,-24633.86484465,0.00079787,15]
[358317972,1744931438603,-597.3665,0.00079787,2]
[358317973,1744931438612,-1201.0114,0.00079787,2]
[358317974,1744931438621,-176.31,0.00079803,2]
[358317975,1744931438631,-3661.51,0.00079803,30]
[358317976,1744931438640,-1108.58,0.00079886,120]
[358317977,1744931438649,-17890.4878,0.00079887,2]
[358317978,1744931438659,-109757.2786,0.00079887,2]
[358317979,1744931438668,-150.0,0.000799,120]
[358317980,1744931438678,-500.0,0.00079987,7]
[358317981,1744931438688,-2000.0,0.00079999,2]
[358317982,1744931438698,-759.82011768,0.00079999,120]
[358317983,1744931438708,-1000.0,0.0008,120]
[358317984,1744931438717,-1000.0,0.0008,120]
[358317985,1744931438726,-210.8174,0.0008,120]
[358317986,1744931438736,-13178.6918,0.0008,120]
[358317987,1744931438746,-704.0413,0.0008,120]
[358317988,1744931438755,-256.4154,0.0008,120]
[358317989,1744931438765,-4878.9125715,0.00080001,15]
[358317990,1744931438774,-500.0,0.00080043,2]
[358317991,1744931438784,-500.0,0.00080043,15]
[358317992,1744931438794,-163.58366371,0.00080043,14]
[358317993,1744931438803,-501.87216249,0.00080043,2]
[358317994,1744931438812,-24633.86484457,0.00080077,15]
[358317995,1744931438822,-68102.80934089,0.000801,2]
[358317996,1744931438831,-660.27426234,0.00080101,51]
[358317997,1744931438841,-4878.91257144,0.00080268,15]
[358317998,1744931438850,-24633.86484457,0.00080368,15]
[358317999,1744931438859,-1000.0,0.000805,120]
[358318000,1744931438869,-682.83,0.00080523,2]
[358318001,1744931438879,-4878.91257144,0.00080534,15]
[358318002,1744931438893,-500.0,0.00080551,15]
[358318003,1744931438903,-302.187072,0.00080551,14]
[358318004,1744931438912,-150.0,0.00080625,60]
[358318005,1744931438922,-150.0,0.00080643,60]
[358318006,1744931438932,-150.0,0.00080657,60]
[358318007,1744931438942,-24633.86484457,0.00080658,15]
[358318008,1744931438954,-150.0,0.00080664,60]
[358318009,1744931438966,-150.0,0.00080674,60]
[358318010,1744931438976,-150.0,0.00080685,60]
[358318011,1744931438985,-150.0,0.00080688,60]
[358318012,1744931438996,-150.0,0.00080689,60]
[358318013,1744931439005,-150.0,0.00080689,60]
[358318014,1744931439015,-150.0,0.00080702,60]
[358318015,1744931439024,-150.0,0.00080702,60]
[358318016,1744931439034,-150.0,0.00080706,60]
[358318017,1744931439043,-150.0,0.00080712,60]
[358318018,1744931439053,-150.0,0.00080725,60]
[358318019,1744931439062,-150.0,0.00080755,60]
[358318020,1744931439072,-150.0,0.00080774,60]
[358318021,1744931439081,-1000.0,0.00080783,30]
[358318022,1744931439090,-150.0,0.0008079,60]
[358318023,1744931439100,-150.0,0.00080793,60]
[358318024,1744931439109,-6106.9982,0.000808,120]
[358318025,1744931439118,-684.69957933,0.000808,90]
[358318026,1744931439128,-4878.91257144,0.00080801,15]
[358318027,1744931439137,-150.0,0.00080804,60]
[358318028,1744931439147,-150.0,0.00080814,60]
[358318029,1744931439157,-150.0,0.00080817,60]
[358318030,1744931439166,-500.0,0.00080822,120]
[358318031,1744931439176,-249.93328278,0.00080839,60]
[358318032,1744931439185,-150.0,0.0008084,60]
[358318033,1744931439195,-150.0,0.00080844,60]
[358318034,1744931439204,-150.0,0.00080844,60]
[358318035,1744931439214,-150.0,0.00080858,60]
[358318036,1744931439224,-150.0,0.00080865,60]
[358318037,1744931439233,-500.0,0.00080871,120]
[358318038,1744931439243,-500.0,0.00080871,120]
[358318039,1744931439253,-1108.58,0.00080871,120]
[358318040,1744931439263,-500.0,0.00080871,120]
[358318041,1744931439273,-564.99,0.00080871,120]
[358318042,1744931439282,-500.0,0.00080871,120]
[358318043,1744931439292,-500.0,0.00080871,120]
[358318044,1744931439302,-500.0,0.00080871,120]
[358318045,1744931439323,-500.0,0.00080871,120]
[358318046,1744931439334,-500.0,0.00080871,120]
[358318047,1744931439344,-500.0,0.00080871,120]
[358318048,1744931439354,-500.0,0.00080871,120]
[358318049,1744931439364,-273.09,0.00080871,120]
[358318050,1744931439374,-500.0,0.00080871,120]
[358318051,1744931439383,-500.0,0.00080871,120]
[358318052,1744931439393,-500.0,0.00080871,120]
[358318053,1744931439403,-500.0,0.00080871,120]
[358318054,1744931439413,-500.0,0.00080871,120]
[358318055,1744931439423,-500.0,0.00080871,120]
[358318056,1744931439433,-500.0,0.00080871,120]
[358318057,1744931439443,-500.0,0.00080871,120]
[358318058,1744931439452,-500.0,0.00080871,120]
[358318059,1744931439462,-500.0,0.00080871,120]
[358318060,1744931439472,-500.0,0.00080871,120]
[358318061,1744931439482,-500.0,0.00080871,120]
[358318062,1744931439491,-500.0,0.00080871,120]
[358318063,1744931439501,-500.0,0.00080871,120]
[358318064,1744931439511,-500.0,0.00080871,120]
[358318065,1744931439520,-150.0,0.00080872,60]
[358318066,1744931439668,-150.0,0.00080873,60]
[358318067,1744931439679,-150.0,0.00080878,60]
[358318068,1744931439689,-150.0,0.00080879,60]
[358318069,1744931439699,-157.0,0.00080881,60]
[358318070,1744931439708,-150.0,0.00080888,60]
[358318071,1744931439718,-514.48353842,0.00080889,120]
[358318072,1744931439727,-500.0,0.00080889,120]
[358318073,1744931439737,-500.0,0.00080889,120]
[358318074,1744931439746,-500.0,0.00080889,120]
[358318075,1744931439756,-118.93848874,0.00080889,120]
[358318209,1744931444489,-524.36265768,0.00080871,120]
[358318210,1744931444499,-500.0,0.00080871,120]
[358318212,1744931444510,-381.06151126,0.00080889,120]
[358318214,1744931444520,-500.0,0.00080889,120]
[358318215,1744931444529,-500.0,0.00080889,120]
[358318216,1744931444540,-585.37088748,0.00080889,120]
[358318218,1744931444549,-500.0,0.00080889,120]
[358318220,1744931444558,-276.20793451,0.00080889,120]
[358318221,1744931444587,-223.79206549,0.00080889,120]
[358318222,1744931444596,-500.0,0.00080889,120]
[358318223,1744931444605,-500.0,0.00080889,120]
[358318224,1744931444614,-508.23,0.00080889,120]
[358318225,1744931444624,-544.87190489,0.00080889,120]
[358318226,1744931444633,-500.0,0.00080889,120]
[358318227,1744931444643,-335.38,0.00080889,120]
[358318228,1744931444652,-163.333703,0.00080889,120]
[358318229,1744931444661,-1052.56006096,0.00080889,120]
[358318230,1744931444696,-13.44636533,0.00080871,120]
[358318232,1744931445778,-251.184,0.00080871,120]
[358318248,1744932290627,250.0,0.00017,2]
[358318249,1744932291695,300.0,0.00019,2]
[358318251,1744932309210,-215.07037947,0.0002,2]
[358318252,1744932330881,-215.07037947,0.000199,2]
[358318253,1744932332100,-454.68158756,0.000199,2]
[358318254,1744932373482,-328.2663679,0.000199,2]
[358318255,1744932425891,-237.1918625,0.000199,2]
[358318256,1744932429089,-767.83523428,0.000199,2]
[358318257,1744932430085,-415.44298358,0.000199,2]
[358318258,1744932442103,-4292.15879441,0.000199,2]
[358318259,1744932442125,-776.75396072,0.000199,2]
[358318260,1744932442147,-776.75396073,0.000199,2]
[358318261,1744932442168,-500.0,0.00019973,2]
[358318262,1744932442190,-135.85986249,0.00019973,2]
[358318263,1744932449120,-364.14013751,0.00019973,2]
[358318264,1744932449140,-121.77070929,0.00019973,2]
[358318265,1744932453098,-30.13589398,0.00019973,2]
[358318266,1744932453120,-253.47319265,0.00019999,2]
[358318267,1744932454107,-46.52680735,0.00019999,2]
[358318268,1744932454129,-500.0,0.00019999,2]
[358318269,1744932454164,-300.0,0.00019999,2]
[358318270,1744932454189,-850.0,0.00019999,2]
[358318271,1744932454216,-189.61790911,0.00019999,2]
[358318272,1744932454239,-219.20341945,0.00019999,2]
[358318273,1744932454265,-197.74267762,0.0002,2]
[358318275,1744932485187,-300.0,0.00024,5]
[358318284,1744932537929,-500.0,0.00019973,2]
[358318286,1744932537979,-1652.82164051,0.0002,2]
[358318289,1744932538039,-2152.82164051,0.0002,2]
[358318291,1744932538094,-2152.82164051,0.0002,2]
[358318292,1744932538159,-2152.82164051,0.0002,2]
[358318293,1744932538228,-2152.82164051,0.0002,2]
[358318294,1744932538320,-2152.82164051,0.0002,2]
[358318295,1744932538401,-642.11593084,0.0002,2]
[358318296,1744932538469,-2152.82164051,0.0002,2]
[358318297,1744932538550,-2152.82164051,0.0002,2]
[358318298,1744932538624,-2152.82164051,0.0002,2]
[358318299,1744932538720,-2152.82164051,0.0002,2]
[358318300,1744932538786,-2152.82164051,0.0002,2]
[358318301,1744932538862,-2152.82164051,0.0002,2]
[358318302,1744932538928,-2152.82164051,0.0002,2]
[358318305,1744932545127,-228.41298702,0.0002,2]
[358318309,1744932562569,-581.32915412,0.00019999,2]
[358318310,1744932562617,-2144.06843154,0.0002,2]
[358318312,1744932562664,-2725.39758566,0.0002,2]
[358318314,1744932562716,-2725.39758566,0.0002,2]
[358318317,1744932562788,-2725.39758566,0.0002,2]
[358318318,1744932562855,-613.90520597,0.0002,2]
[358318319,1744932562940,-2725.39758566,0.0002,2]
[358318320,1744932587597,-1864.43590199,0.0002,2]
[358318322,1744932602849,2000.0,0.0002,4]
[358318325,1744932631611,-303.76,0.0001999,2]
[358318327,1744932631621,-303.76,0.0001999,2]
[358318329,1744932631630,-303.76,0.0001999,2]
[358318331,1744932631640,-303.76,0.0001999,2]
[358318334,1744932631649,-303.76,0.0001999,2]